Cogmind - Beta 16 @@@ ROGUE MODE // 2026.01.10 @ 11:03:24 Player: arsenico Result: Destroyed by 1Q-2OR(R) with Subdweller Machine Gun Performance ------------- Evolutions (0) 0 Regions Visited (2) 400 Robots Destroyed (30) 150 Value Destroyed (807) 807 Prototype IDs (0) 0 Alien Tech Used (0) 0 Bonus (0) 0 TOTAL SCORE: 1357 Bonus ------- None Cogmind --------- Core Integrity 0/250 Matter 87/300 Energy 67/100 System Corruption 0% Temperature Cool (0) Movement Rolling (120) Ox1 Location -10/Subcaves Parts ------- > --- POWER (1) -------- (None) > --- PROPULSION (2) --- Subdweller Monowheel > --- UTILITY (2) ------ Large Storage Unit > --- WEAPON (2) ------- Subdweller Machine Gun Barrage Gun > --- INVENTORY (15) --- Heat Sink Medium Storage Unit Huge Storage Unit Medium Matter Pod (100) Signal Interpreter Targeting Computer Assault Rifle Light Assault Rifle Light Assault Rifle Grenade Launcher Grenade Launcher Datajack Shrapnel Trap Peak State ------------ > --- POWER ------------ (None) > --- PROPULSION ------- Subdweller Monowheel > --- UTILITY ---------- Large Storage Unit Shield Generator > --- WEAPON ----------- Subdweller Machine Gun Barrage Gun > --- INVENTORY -------- Heat Sink Medium Storage Unit Huge Storage Unit Medium Matter Pod Signal Interpreter Targeting Computer Assault Rifle Light Assault Rifle Light Assault Rifle Grenade Launcher Grenade Launcher Datajack Shrapnel Trap [Rating: 11] Favorites ----------- Power Light Ion Engine Engine Light Ion Engine Propulsion Light Treads Treads Light Treads Wheel Subdweller Monowheel Utility Seismic Detector Device Seismic Detector Storage Large Storage Unit Weapon Light Assault Rifle Ballistic Gun Light Assault Rifle Launcher Grenade Launcher Build | -11 -10 -10 ------- Run | Yrd Mat Sub Slots Evolved . | . . . Power . | . . . Propulsion . | . . . Utility . | . . . Weapon . | . . . Parts Attached 21 | 8 5 8 Power 2 | 1 . 1 Engine 2 | 1 . 1 Core . | . . . Reactor . | . . . Propulsion 4 | 2 1 1 Treads 3 | 2 1 . Leg . | . . . Wheel 1 | . . 1 Hover . | . . . Flight . | . . . Utility 6 | 3 2 1 Device 3 | 2 . 1 Storage 3 | 1 2 . Processor . | . . . Hackware . | . . . Protection . | . . . Artifact . | . . . Weapon 9 | 2 2 5 Energy Gun . | . . . Energy Cannon . | . . . Ballistic Gun 6 | 2 1 3 Ballistic Cannon . | . . . Launcher 3 | . 1 2 Special Weapon . | . . . Impact Weapon . | . . . Slashing Weapon . | . . . Piercing Weapon . | . . . Special Melee Weapon . | . . . Unidentified Prototypes . | . . . Parts Lost 9 | . 3 6 Power 2 | . 1 1 Propulsion 3 | . 1 2 Utility 2 | . . 2 Weapon 2 | . 1 1 Highest Loss Streak 2 | . 2 2 To Critical Strikes 1 | . . 1 Average Backups 10 | 1 8 13 Power . | . 1 . Propulsion . | . . . Utility 5 | . 4 6 Weapon 3 | . 2 5 Tool/Special . | . . . Unused Backups 8 | . 2 6 Power 2 | . 2 . Propulsion . | . . . Utility 5 | . . 5 Weapon . | . . . Tool/Special 1 | . . 1 Average Slot Usage (%) 87 | . 93 81 Engine 8 | . 7 8 Treads 21 | . 27 15 Device 13 | . 14 13 Storage 14 | . 14 14 Ballistic Gun 21 | . 24 17 Launcher 6 | . 3 9 Peak Build Rating 11 | 7 8 11 Average Rating 7 | 6 7 7 On Entrance 4 | . 7 7 Avg Prop Armor Cover (%) . | . . . Naked Turns . | . . . Heaviest Build 32 | 11 26 32 Greatest Support 40 | 40 40 40 Greatest Overweight (x) 10 | . . 10 Average Overweight (x) . | . . 1 Largest Inventory Capacity 15 | 8 15 15 Average Capacity 13 | 7 12 15 Most Carried 15 | 5 12 15 Average Carried 10 | 1 8 14 Final Capacity 15 | 8 15 15 Final Carried 13 | 2 12 13 Class Distribution -------------------- 100% | Mutant Dominant Class ---------------- Mutant | -10/Materials Mutant | -10/Subcaves Resources | -11 -10 -10 ----------- Run | Yrd Mat Sub Matter Collected 876 | 318 341 217 Remotely 203 | 203 . . Salvage Created 862 | 149 495 218 Parts 65 | 12 31 22 Haulers Intercepted 2 | . 2 . Recyclers Shooed 1 | . 1 . Parts Field Recycled . | . . . Retrieved Matter . | . . . Parts Self-Destructed 6 | . . 6 Prevented . | . . . Parts Restored . | . . . Kills | -11 -10 -10 ------- Run | Yrd Mat Sub Combat Hostiles Destroyed 18 | . 10 8 Guns 10 | . 8 2 AOE 8 | . 2 6 Classes Destroyed 8 | 3 3 2 Worker 3 | 1 2 . Tunneler 4 | 3 1 . Hauler 2 | . 2 . Recycler 1 | 1 . . Operator 2 | . 2 . Grunt 10 | . 10 . Sentry 1 | . . 1 Subdweller 7 | . . 7 Best Kill Streak 4 | 2 4 2 Combat Bots Only 2 | . 2 2 Max Kills in Single Turn 2 | 1 2 1 Gunslinging . | . . . Exploded 1 | . 1 1 Melee . | . . . Uniques/NPCs Destroyed . | . . . Combat | -11 -10 -10 -------- Run | Yrd Mat Sub Hostile Shots Fired 90 | . 51 39 Missed 23 | . 13 10 Hits 67 | . 38 29 Projectile 67 | . 38 29 Critical Strikes 4 | . 2 2 Damage Taken 1241 | . 592 649 Core 250 | . 106 144 Absorbed by Shields 29 | . . 29 Core Remaining (%) 100 | 100 . . Volleys Fired 119 | 19 65 35 Largest 2 | 2 2 2 Hottest 60 | 40 50 60 Shots Fired 228 | 38 130 60 Gun 203 | 38 125 40 Cannon . | . . . Launcher 25 | . 5 20 Special . | . . . Kinetic 203 | 38 125 40 Thermal . | . . . Explosive 25 | . 5 20 Electromagnetic . | . . . Robot Hit Streak 14 | 7 8 14 Robot Miss Streak 6 | 2 6 4 Penetration Max . | . . . Secondary Targets . | . . . Shots Hit Robots 135 | 21 78 36 Core Hits 60 | 9 38 13 Critical Kills . | . . . Critical Parts Destroyed . | . . . Critical Strikes 1 | . . 1 Destroy 1 | . . 1 Melee Attacks . | . . . Impact . | . . . Slashing . | . . . Piercing . | . . . Sneak Attacks . | . . . Combat Hostiles . | . . . Follow-up Attacks . | . . . Damage Inflicted 2319 | 189 970 1160 Guns 1144 | 189 641 314 Cannons . | . . . Explosions 1175 | . 329 846 Melee . | . . . Ramming . | . . . Kinetic 1144 | 189 641 314 Thermal 130 | . 130 . Explosive 1045 | . 199 846 Electromagnetic . | . . . Impact . | . . . Slashing . | . . . Piercing . | . . . Highest Corruption . | . . . Average Corruption . | . . . Corruption Purged . | . . . Corruption Blocked . | . . . Overload Shots . | . . . Overflow Damage 38 | . 33 5 Projectiles . | . . . Explosions 38 | . 33 5 Melee . | . . . Knockbacks . | . . . Impact . | . . . Kinetic . | . . . Secondary . | . . . Self-Inflicted Damage 96 | . . 96 Shots 9 | . . 9 Rammed . | . . . Targets Rammed . | . . . Kicked . | . . . Crushed . | . . . Highest Temperature 52 | . 52 . Average Temperature 13 | . 13 . Received Heat Transfer 416 | . 309 107 Siege Activations . | . . . Martial Activations . | . . . Shielding Activations . | . . . Robots Disrupted . | . . . Combat Hostiles . | . . . Robots Corrupted . | . . . Combat Hostiles . | . . . Parts Fried . | . . . Impact Corruptions . | . . . Robots Melted . | . . . Combat Hostiles . | . . . Parts Melted . | . . . Heat Transferred 100 | . 100 . Parts Sabotaged . | . . . Parts Stolen . | . . . Parts Stripped . | . . . Power Chain Reactions . | . . . Alert | -11 -10 -10 ------- Run | Yrd Mat Sub Maximum Alert Level . | . . . Low Security (%) 100 | 100 100 . Level 1 . | . . . Level 2 . | . . . Level 3 . | . . . Level 4 . | . . . Level 5 . | . . . High Security . | . . . Max Security . | . . . Peak Influence 190 | 5 190 . Initial . | . . . Average 38 | 1 43 . Influence Increases 509 | 25 464 20 Destroy 0b10 Robot/C 220 | . 200 20 Destroy 0b10 Robot/NC 60 | 25 35 . Destroy Leader 54 | . 54 . Disable Machine 45 | . 45 . Destroy Structure 40 | . 40 . Lose Combat Pursuer 90 | . 90 . Influence Decreases 509 | 25 464 20 Time Decay 482 | 25 437 20 Lost Part 27 | . 27 . Squads Dispatched 2 | . 2 . Investigation . | . . . Extermination . | . . . Reinforcement 2 | . 2 . Assault . | . . . Garrison . | . . . Intercept . | . . . Searches Triggered . | . . . Construction Impeded . | . . . Haulers Reinforced . | . . . Active Scanning Responses . | . . . Cargo Convoy Interrupts . | . . . Stealth | -11 -10 -10 --------- Run | Yrd Mat Sub Distress Signals 1 | . 1 . Communications Jammed . | . . . Distress Signals . | . . . Times Spotted 46 | . 38 8 Peak Tracking Total 4 | . 4 2 Tactical Retreats 4 | . 4 . Traps | -11 -10 -10 ------- Run | Yrd Mat Sub Traps Triggered 1 | . 1 . Indirectly . | . . . Trap Hack Attempts . | . . . Triggered . | . . . Disarmed . | . . . Reprogrammed . | . . . Reused . | . . . Traps Extracted . | . . . Installed . | . . . Triggered . | . . . Most Traps Carried 1 | . . 1 Machines | -11 -10 -10 ---------- Run | Yrd Mat Sub Machines Disabled 3 | . 3 . Max in Single Turn 3 | . 3 . Machines Repaired . | . . . Machines Dismantled . | . . . Machines Sabotaged . | . . . Overloaded Fab Kills . | . . . Hacking | -11 -10 -10 --------- Run | Yrd Mat Sub Machines Accessed 7 | . 7 . Terminals 5 | . 5 . Fabricators . | . . . Repair Stations 1 | . 1 . Recycling Units 1 | . 1 . Scanalyzers . | . . . Garrison Access . | . . . Total Hacks 9 | . 9 . Successful 3 | . 3 . Failed 6 | . 6 . Catastrophic 1 | . 1 . Database Lockouts . | . . . Manual 3 | . 3 . Terminals 7 | . 7 . Fabricators . | . . . Repair Stations 1 | . 1 . Recycling Units 1 | . 1 . Scanalyzers . | . . . Garrison Access . | . . . Terminal Hacks 2 | . 2 . Emergency Access Points 1 | . 1 . Alert Level 1 | . 1 . Fabricator Hacks . | . . . Repair Station Hacks . | . . . Recycling Unit Hacks 1 | . 1 . Report Inventory 1 | . 1 . Scanalyzer . | . . . Garrison Access Hacks . | . . . Unauthorized Hacks . | . . . Terminals . | . . . Fabricators . | . . . Repair Stations . | . . . Recycling Units . | . . . Scanalyzers . | . . . Garrison Access . | . . . Data Cores Recovered . | . . . Used . | . . . Hacking Detections 3 | . 3 . Full Trace Events . | . . . Feedback Events . | . . . Feedback Blocked . | . . . Robot Schematics Acquired . | . . . Robots Built . | . . . Authchips . | . . . Time . | . . . Total Robot Build Rating . | . . . Part Schematics Acquired . | . . . Parts Built . | . . . Authchips . | . . . Time . | . . . Total Part Build Rating . | . . . Part Studies Acquired . | . . . Parts Repaired . | . . . Time . | . . . Parts Recycled . | . . . Recycled Matter . | . . . Retrieved Matter . | . . . Retrieved Components . | . . . Parts Scanalyzed . | . . . Part Schematics Acquired . | . . . Parts Damaged . | . . . Bothacking | -11 -10 -10 ------------ Run | Yrd Mat Sub Used RIF Installer . | . . . Robots Hacked . | . . . Non-combat . | . . . Combat . | . . . Robot Hacks Applied . | . . . Relay Couplers Released . | . . . Fabnet Peak Effective % . | . . . Robots Rewired . | . . . Allies Hacked . | . . . Hacks Repelled . | . . . Allies | -11 -10 -10 -------- Run | Yrd Mat Sub Total Allies . | . . . Largest Group . | . . . Highest-Rated Group . | . . . Highest-Rated Ally . | . . . Total Orders . | . . . Ally Attacks . | . . . Total Damage . | . . . Kills . | . . . Allies Corrupted . | . . . Allies Melted . | . . . Intel | -11 -10 -10 ------- Run | Yrd Mat Sub Active Infowar (turns) 3486 | 27 1783 1676 Seismic 3486 | 27 1783 1676 Robot Analysis Total . | . . . Derelict Logs Recovered . | . . . Drone Launches . | . . . Drone Recoveries . | . . . Exploration | -11 -10 -10 ------------- Run | Yrd Mat Sub Turns Passed 3777 | 218 1783 1776 Spaces Moved 1660 | 103 924 633 Core 123 | 13 . 110 Treads 1525 | 90 924 511 Legs . | . . . Wheels 12 | . . 12 Hover . | . . . Flight . | . . . Fastest Speed 50 | 50 160 120 Average Speed 188 | 146 160 236 Slowest Speed 550 | 160 160 550 Overloaded Moves . | . . . Propulsion Burnouts . | . . . Robots Hopped . | . . . Potential Cave-ins . | . . . Cave-ins Triggered . | . . . Exploration Rate (%) 48 | 5 99 42 Regions Visited 2 Branch Regions 1 Pre-discovered Areas . | . . . Known Exits Taken . | . . . Unknown Exits Taken 2 | 1 1 . Scrap Searched . | . . . Spaces Dug 6 | . . 6 Terrain Destroyed 152 | . 50 102 Melee . | . . . Projectile . | . . . AOE 152 | . 50 102 Terrain Rammed . | . . . Walls Destroyed . | . . . Machines Disabled . | . . . Actions | -11 -10 -10 --------- Run | Yrd Mat Sub Total 2116 | 141 1126 849 Wait 269 | . 107 162 Move 1658 | 102 923 633 Hop . | . . . Pick Up 32 | 10 17 5 Fast Attach . | . . . Attach 17 | 8 5 4 Detach 3 | 1 2 . Swap 12 | . 2 10 Drop 6 | 1 5 . Fire 119 | 19 65 35 Melee . | . . . Ram . | . . . Kick . | . . . Crush . | . . . Escape Stasis . | . . . Rewire . | . . . Trap . | . . . Miscellaneous . | . . . Route ------- -11/Scrapyard -10/Materials (discovered 6 exits: [*Mat x3] / [*Min x2] / [*Sub]) -10/Subcaves (discovered 1 exit: [*Mat]) History --------- Turn | Location | Event 4 | -11/Scrapyard | Discovered new exit (range 13) 219 | -11/Scrapyard | Entered Materials 315 | -10/Materials | Build established: Mutant 828 | -10/Materials | Discovered new exit (range 7) 1166 | -10/Materials | Discovered new exit (range 5) 1336 | -10/Materials | Discovered new exit (range 15) 1381 | -10/Materials | Discovered new exit (range 8) 1545 | -10/Materials | Discovered new exit (range 13) 1975 | -10/Materials | Discovered new exit (range 15) 2002 | -10/Materials | Entered Subcaves 2218 | -10/Subcaves | Core integrity fell below 50% 2282 | -10/Subcaves | Shifting Twisted Machinery released Barrage Gun 2557 | -10/Subcaves | Shifting Twisted Machinery released Sub. Machine Gun 2558 | -10/Subcaves | Shifting Twisted Machinery released Shrapnel Trap 2622 | -10/Subcaves | Discovered new exit (range 7) 3681 | -10/Subcaves | Core integrity fell below 20% 3778 | -10/Subcaves | Destroyed by 1Q-2OR(R) with Subdweller Machine Gun Last Messages --------------- Ion Engine destroyed. Y-45 Defender destroyed. Lgt. Treads fries itself beyond repair. Beam Rifle fries itself beyond repair. Imp. Ion Engine fries itself beyond repair. Heat Sink fries itself beyond repair. Lgt. Armor Plating fries itself beyond repair. Acquired 40 matter. The unstable cave ceiling collapses. Grenade Launcher destroyed. Seismic Detector destroyed. N6-NTL(R) destroyed. Subatomizers dissect the Disposable Heat Sink. Acquired Sub. Monowheel. Acquired 31 matter. Subatomizers dissect the Disposable Heat Sink. 1Q-2OR(R) suffers critical hit (Destroy). Shield Generator destroyed. Sub. Machine Gun shoots sparks and powers down. Map ----- +----------------------------------------------------+ | ?????????????????????????????????????????????????? | | ?????????????????????????????????????????????????? | | ?????????????????????????????????????????????????? | | ?????????????????????????????????????????????????? | | ?????????????????????????????????????????????????? | | ?????????????????????????????????????????????????? | | ?????????????????????????????????????????????????? | | ?????????????????????????????????????????????????? | | ?????????????????????????????????????????????????? | | ?????????????????????????????????????????????????? | | ?????????????????????????????????????????????????? | | ????????????????????? ???????????????????????????? | | ?????????????????????? """""?????????????????????? | | ?????????????????????? ?????????????????????? | | ?????????????????????? ?????????????????????? | | ??????????????????????# ?????????????????????? | | ??????????????????????# """??????????????????????? | | ??????????????????????? " ###????????????????????? | | ??????????????????????? " ""????????????????????? | | ???????????????????????#" #?????????????????????? | | ??????????????????????## "##?????????????????????? | | ?????????????????????## ##????????????????????? | | ?????????????????????# #????????????????????? | | ???????????????####?## "##??? ??????????????? | | ???????????????#< ## R""# " #?????????????? | | ?????????????????# & ! @" #""#???????????????? | | ?????????????????##<#* ## #?????????????????? | | ??????????????????### # #??????????????? | | ???????????????????# #???????????????? | | ????????????######## #???????????????? | | ???????????## ### ###???????????????? | | ##???????### ##??######?????????????????? | | #####?### ### #??????????????????????????? | | # ### #?## #?????????????????????????? | | ## ##??# #?????????????????????????? | | # ### #???# #????????????????????????? | | # # #???#### #???????????????????????? | | #### #???????# #???????????????????????? | | ???# ##### ##????????###???????????????????????? | | ???# ##???## #???????????????????????????????????? | | ???# #?????# #???????????????????????????????????? | | ???# ##????# #???????????????????????????????????? | | ???# ##??## #???????????????????????????????????? | | ???## #### #???????????????????????????????????? | | ????# ##???????????????????????????????????? | | ????#########????????????????????????????????????? | | ?????????????????????????????????????????????????? | | ?????????????????????????????????????????????????? | | ?????????????????????????????????????????????????? | | ?????????????????????????????????????????????????? | +----------------------------------------------------+ Best States ------------- Heat Dissipation 25 Energy Generation 10 Energy Capacity 250 Matter Stores 300 Matter Capacity 300 Sight Range 16 Terrain Scan Density 10 Evasion (%) 40 Recoil Reduction 2 Item Schematics ----------------- None Robot Schematics ------------------ None Fabricated ------------ Nothing Repaired ---------- Nothing Studied --------- None Alien Tech Used ----------------- None Achievements -------------- None Challenges ------------ None Game ------ Seed MicroSpacefoldDetonator Manual? 0 Play Time 00:17:34 Cumulative 13.2 hours Start 2026.01.10 @ 10:44:37 End 2026.01.10 @ 11:03:24 Sessions 1 Manual Loads 0 Difficulty Rogue Special Mode None Game No. 23 Rogue 23 Adventurer 0 Explorer 0 Win Type - Total 0 Types 0/0/0/0/0/0/0/0/0/0 Lore% 4 Gallery% 17 Achievement% 13 Wizard Run 0 Options --------- Layout 1 ASCII 0 Keyboard 1 Movement Numpad Keybinds 0 Fullscreen 1 Font 24/Smallcaps Map View 50x35 Zoom Use 0% Tactical HUD 0 Map Filters NONE Filters NONE Steam 1 RUN: 4ad5cb57-c1bc-4ac7-b8aa-6b8128798048